Cogmind - Beta 16 @@@ ROGUE MODE // 2025.12.24 @ 23:51:47 Player: MrProgressor Result: Destroyed by CM-Y6X(R) with Subdweller Beam Cannon Performance ------------- Evolutions (0) 0 Regions Visited (3) 600 Robots Destroyed (9) 45 Value Destroyed (256) 256 Prototype IDs (3) 60 Alien Tech Used (0) 0 Bonus (0) 0 TOTAL SCORE: 961 Bonus ------- None Cogmind --------- Core Integrity 0/250 Matter 280/300 Energy 200/200 System Corruption 0% Temperature Cool (9) Movement Core (500) Ox9 Location -10/Subcaves Parts ------- > --- POWER (1) -------- Subdweller Power Source > --- PROPULSION (2) --- (None) > --- UTILITY (2) ------ Large Storage Unit Signal Interpreter > --- WEAPON (2) ------- Hammer Makeshift Spear > --- INVENTORY (15) --- Ion Engine Light Ion Engine Light Treads Light Treads Wheel Wheel Wheel Disposable Heat Sink Large Storage Unit Large Battery (200) Medium Matter Pod (100) Subdweller Optics Seismic Detector Grenade Launcher Mining Laser Peak State ------------ > --- POWER ------------ Subdweller Power Source > --- PROPULSION ------- Wheel Subdweller Monowheel > --- UTILITY ---------- Large Storage Unit Seismic Detector > --- WEAPON ----------- Hammer Makeshift Spear > --- INVENTORY -------- Ion Engine Light Ion Engine Light Treads Light Treads Wheel Wheel Wheel Disposable Heat Sink Large Storage Unit Large Battery Medium Matter Pod Subdweller Optics Signal Interpreter Grenade Launcher Mining Laser [Rating: 13] Favorites ----------- Power Light Ion Engine Engine Light Ion Engine Propulsion Wheel Treads Light Treads Wheel Wheel Utility Large Storage Unit Device Seismic Detector Storage Large Storage Unit Processor Signal Interpreter Weapon Small Laser Energy Gun Small Laser Impact Weapon Hammer Slashing Weapon Mining Claw Piercing Weapon Makeshift Spear Build | -11 -10 -10 -10 ------- Run | Yrd Mat Min Sub Slots Evolved . | . . . . Power . | . . . . Propulsion . | . . . . Utility . | . . . . Weapon . | . . . . Parts Attached 20 | 7 2 4 7 Power 3 | 1 . . 2 Engine 3 | 1 . . 2 Core . | . . . . Reactor . | . . . . Propulsion 7 | 3 . 3 1 Treads 2 | . . 2 . Leg . | . . . . Wheel 5 | 3 . 1 1 Hover . | . . . . Flight . | . . . . Utility 5 | 2 1 1 1 Device 2 | 1 . 1 . Storage 2 | 1 1 . . Processor 1 | . . . 1 Hackware . | . . . . Protection . | . . . . Artifact . | . . . . Weapon 5 | 1 1 . 3 Energy Gun 2 | 1 1 . . Energy Cannon . | . . . . Ballistic Gun . | . . . . Ballistic Cannon . | . . . . Launcher . | . . . . Special Weapon . | . . . . Impact Weapon 1 | . . . 1 Slashing Weapon 1 | . . . 1 Piercing Weapon 1 | . . . 1 Special Melee Weapon . | . . . . Unidentified Prototypes . | . . . . Parts Lost 6 | . . . 6 Power 1 | . . . 1 Propulsion 2 | . . . 2 Utility 1 | . . . 1 Weapon 2 | . . . 2 Highest Loss Streak 4 | . . . 4 To Critical Strikes . | . . . . Average Backups 12 | 3 11 15 14 Power 1 | . 2 2 2 Propulsion 3 | 2 4 4 4 Utility 3 | . 2 5 5 Weapon 2 | . 2 4 2 Tool/Special . | . . . . Unused Backups 10 | . . . 10 Power 2 | . . . 2 Propulsion 1 | . . . 1 Utility 5 | . . . 5 Weapon 2 | . . . 2 Tool/Special . | . . . . Average Slot Usage (%) 92 | . 94 100 88 Engine 13 | . 14 14 13 Treads 2 | . . 10 . Wheel 25 | . 28 18 27 Device 11 | . 14 14 8 Storage 14 | . 14 14 14 Processor 1 | . . . 2 Energy Gun 15 | . 23 28 6 Impact Weapon 5 | . . . 10 Slashing Weapon 1 | . . . 2 Piercing Weapon 1 | . . . 2 Peak Build Rating 13 | 7 8 10 13 Average Rating 8 | 5 7 9 9 On Entrance 6 | . 7 8 10 Avg Prop Armor Cover (%) . | . . . . Naked Turns . | . . . . Heaviest Build 30 | 10 27 27 30 Greatest Support 40 | 26 20 40 30 Greatest Overweight (x) 1 | . 1 1 1 Average Overweight (x) . | . . . . Largest Inventory Capacity 15 | 8 15 15 15 Average Capacity 13 | 7 14 15 15 Most Carried 15 | 8 15 15 15 Average Carried 12 | 3 12 15 14 Final Capacity 15 | 8 15 15 15 Final Carried 15 | 8 15 15 15 Class Distribution -------------------- 76% | Mutant 23% | Scavenger-Mutant Dominant Class ---------------- Mutant | -10/Materials Mutant | -10/Mines Scavenger-Mutant | -10/Subcaves Resources | -11 -10 -10 -10 ----------- Run | Yrd Mat Min Sub Matter Collected 480 | 239 . 104 137 Remotely . | . . . . Salvage Created 339 | 53 . 104 182 Parts 22 | 10 . 2 10 Haulers Intercepted . | . . . . Recyclers Shooed . | . . . . Parts Field Recycled . | . . . . Retrieved Matter . | . . . . Parts Self-Destructed 5 | . . . 5 Prevented . | . . . . Parts Restored . | . . . . Kills | -11 -10 -10 -10 ------- Run | Yrd Mat Min Sub Combat Hostiles Destroyed 6 | . . 2 4 Melee 2 | . . . 2 Guns 3 | . . 2 1 Classes Destroyed 4 | 2 . 1 1 Worker 1 | 1 . . . Tunneler 2 | 2 . . . Grunt 2 | . . 2 . Subdweller 4 | . . . 4 Best Kill Streak 2 | 2 . 1 2 Combat Bots Only 2 | . . 1 2 Max Kills in Single Turn 1 | 1 . 1 1 Gunslinging . | . . . . Exploded . | . . . . Melee 1 | . . . 1 Uniques/NPCs Destroyed . | . . . . Combat | -11 -10 -10 -10 -------- Run | Yrd Mat Min Sub Hostile Shots Fired 59 | . . 20 39 Missed 12 | . . 3 9 Hits 47 | . . 17 30 Projectile 47 | . . 17 30 Damage Taken 906 | . . 219 687 Core 261 | . . . 261 Absorbed by Shields . | . . . . Core Remaining (%) 100 | 100 . . . Volleys Fired 35 | 16 . 12 7 Largest 2 | 1 . 2 2 Hottest 90 | 40 . 90 90 Shots Fired 53 | 16 . 24 13 Gun 53 | 16 . 24 13 Cannon . | . . . . Launcher . | . . . . Special . | . . . . Kinetic . | . . . . Thermal 53 | 16 . 24 13 Explosive . | . . . . Electromagnetic . | . . . . Robot Hit Streak 7 | 4 . 7 7 Robot Miss Streak 3 | 2 . 3 1 Penetration Max . | . . . . Secondary Targets 2 | . . 1 1 Max Gunslinging Chain 1 | . . 1 1 Shots Hit Robots 53 | 9 . 16 28 Core Hits 15 | 3 . 5 7 Critical Kills 1 | . . . 1 Critical Parts Destroyed 1 | . . . 1 Critical Strikes 4 | . . . 4 Smash 2 | . . . 2 Impale 2 | . . . 2 Melee Attacks 22 | . . . 22 Impact 15 | . . . 15 Slashing . | . . . . Piercing 7 | . . . 7 Sneak Attacks . | . . . . Combat Hostiles . | . . . . Follow-up Attacks 1 | . . . 1 Damage Inflicted 832 | 100 . 190 542 Guns 433 | 100 . 190 143 Cannons . | . . . . Explosions . | . . . . Melee 399 | . . . 399 Ramming . | . . . . Kinetic . | . . . . Thermal 433 | 100 . 190 143 Explosive . | . . . . Electromagnetic . | . . . . Impact 265 | . . . 265 Slashing . | . . . . Piercing 134 | . . . 134 Highest Corruption . | . . . . Average Corruption . | . . . . Corruption Purged . | . . . . Corruption Blocked . | . . . . Overload Shots . | . . . . Overflow Damage 35 | . . . 35 Projectiles . | . . . . Explosions . | . . . . Melee 35 | . . . 35 Knockbacks 2 | . . . 2 Impact 2 | . . . 2 Kinetic . | . . . . Secondary . | . . . . Self-Inflicted Damage . | . . . . Shots . | . . . . Rammed . | . . . . Targets Rammed . | . . . . Kicked . | . . . . Crushed . | . . . . Highest Temperature 339 | . . 339 . Average Temperature 195 | . . 195 . Received Heat Transfer 285 | . . 117 168 Effects 1 | . . 1 . Energy Bleed 1 | . . 1 . Siege Activations . | . . . . Martial Activations . | . . . . Shielding Activations . | . . . . Robots Disrupted . | . . . . Combat Hostiles . | . . . . Robots Corrupted 1 | . . . 1 Combat Hostiles 1 | . . . 1 Parts Fried 2 | . . . 2 Impact Corruptions 2 | . . . 2 Robots Melted . | . . . . Combat Hostiles . | . . . . Parts Melted 2 | . . 1 1 Heat Transferred 1105 | 225 . 496 384 Parts Sabotaged . | . . . . Parts Stolen . | . . . . Parts Stripped . | . . . . Power Chain Reactions . | . . . . Alert | -11 -10 -10 -10 ------- Run | Yrd Mat Min Sub Maximum Alert Level . | . . . . Low Security (%) 100 | 100 100 100 . Level 1 . | . . . . Level 2 . | . . . . Level 3 . | . . . . Level 4 . | . . . . Level 5 . | . . . . High Security . | . . . . Max Security . | . . . . Peak Influence 30 | 5 12 30 . Initial 3 | . 3 . . Average 4 | 1 1 12 . Influence Increases 85 | 15 20 50 . Destroy 0b10 Robot/C 40 | . . 40 . Destroy 0b10 Robot/NC 15 | 15 . . . Destroy Leader 10 | . . 10 . Successful Hack 20 | . 20 . . Influence Decreases 85 | 10 25 50 . Entered New Map 2 | . 2 . . Time Decay 83 | 10 23 50 . Squads Dispatched . | . . . . Investigation . | . . . . Extermination . | . . . . Reinforcement . | . . . . Assault . | . . . . Garrison . | . . . . Intercept . | . . . . Searches Triggered . | . . . . Construction Impeded . | . . . . Haulers Reinforced . | . . . . Active Scanning Responses . | . . . . Cargo Convoy Interrupts . | . . . . Stealth | -11 -10 -10 -10 --------- Run | Yrd Mat Min Sub Distress Signals . | . . . . Communications Jammed . | . . . . Distress Signals . | . . . . Times Spotted 8 | . . 2 6 Peak Tracking Total 2 | . . 2 2 Tactical Retreats . | . . . . Traps | -11 -10 -10 -10 ------- Run | Yrd Mat Min Sub Traps Triggered . | . . . . Indirectly . | . . . . Trap Hack Attempts . | . . . . Triggered . | . . . . Disarmed . | . . . . Reprogrammed . | . . . . Reused . | . . . . Traps Extracted . | . . . . Installed . | . . . . Triggered . | . . . . Machines | -11 -10 -10 -10 ---------- Run | Yrd Mat Min Sub Machines Disabled . | . . . . Max in Single Turn . | . . . . Machines Repaired . | . . . . Machines Dismantled . | . . . . Machines Sabotaged . | . . . . Overloaded Fab Kills . | . . . . Hacking | -11 -10 -10 -10 --------- Run | Yrd Mat Min Sub Machines Accessed 3 | . 3 . . Terminals 2 | . 2 . . Fabricators . | . . . . Repair Stations . | . . . . Recycling Units 1 | . 1 . . Scanalyzers . | . . . . Garrison Access . | . . . . Total Hacks 8 | . 8 . . Successful 7 | . 7 . . Failed 1 | . 1 . . Catastrophic . | . . . . Database Lockouts . | . . . . Manual 4 | . 4 . . Terminals 4 | . 4 . . Fabricators . | . . . . Repair Stations . | . . . . Recycling Units 4 | . 4 . . Scanalyzers . | . . . . Garrison Access . | . . . . Terminal Hacks 2 | . 2 . . Prototype ID Bank 1 | . 1 . . Branch Access Points 1 | . 1 . . Fabricator Hacks . | . . . . Repair Station Hacks . | . . . . Recycling Unit Hacks 2 | . 2 . . Report Inventory 1 | . 1 . . Retrieve Components 1 | . 1 . . Scanalyzer . | . . . . Garrison Access Hacks . | . . . . Unauthorized Hacks 3 | . 3 . . Terminals 1 | . 1 . . Botnet 1 | . 1 . . Fabricators . | . . . . Repair Stations . | . . . . Recycling Units 2 | . 2 . . Monitor 1 | . 1 . . Recyclers 1 | . 1 . . Scanalyzers . | . . . . Garrison Access . | . . . . Data Cores Recovered . | . . . . Used . | . . . . Hacking Detections 2 | . 2 . . Full Trace Events . | . . . . Feedback Events . | . . . . Feedback Blocked . | . . . . Robot Schematics Acquired . | . . . . Robots Built . | . . . . Authchips . | . . . . Time . | . . . . Total Robot Build Rating . | . . . . Part Schematics Acquired . | . . . . Parts Built . | . . . . Authchips . | . . . . Time . | . . . . Total Part Build Rating . | . . . . Part Studies Acquired . | . . . . Parts Repaired . | . . . . Time . | . . . . Parts Recycled . | . . . . Recycled Matter . | . . . . Retrieved Matter . | . . . . Retrieved Components 3 | . 3 . . Parts Scanalyzed . | . . . . Part Schematics Acquired . | . . . . Parts Damaged . | . . . . Bothacking | -11 -10 -10 -10 ------------ Run | Yrd Mat Min Sub Used RIF Installer . | . . . . Robots Hacked . | . . . . Non-combat . | . . . . Combat . | . . . . Robot Hacks Applied . | . . . . Relay Couplers Released . | . . . . Fabnet Peak Effective % . | . . . . Robots Rewired . | . . . . Allies Hacked . | . . . . Hacks Repelled . | . . . . Allies | -11 -10 -10 -10 -------- Run | Yrd Mat Min Sub Total Allies . | . . . . Largest Group . | . . . . Highest-Rated Group . | . . . . Highest-Rated Ally . | . . . . Total Orders . | . . . . Ally Attacks . | . . . . Total Damage . | . . . . Kills . | . . . . Allies Corrupted . | . . . . Allies Melted . | . . . . Intel | -11 -10 -10 -10 ------- Run | Yrd Mat Min Sub Active Infowar (turns) 508 | 42 161 124 181 Terrain 108 | . . 64 44 Seismic 400 | 42 161 60 137 Robot Analysis Total . | . . . . Derelict Logs Recovered 1 | . . . 1 Drone Launches . | . . . . Drone Recoveries . | . . . . Exploration | -11 -10 -10 -10 ------------- Run | Yrd Mat Min Sub Turns Passed 711 | 115 161 124 311 Spaces Moved 506 | 65 160 76 205 Core 1 | 1 . . . Treads 9 | . . 9 . Legs . | . . . . Wheels 496 | 64 160 67 205 Hover . | . . . . Flight . | . . . . Fastest Speed 50 | 50 80 95 95 Average Speed 95 | 88 94 102 95 Slowest Speed 160 | 90 95 160 120 Overloaded Moves . | . . . . Propulsion Burnouts . | . . . . Robots Hopped . | . . . . Potential Cave-ins . | . . . . Cave-ins Triggered . | . . . . Exploration Rate (%) 17 | 5 31 24 9 Regions Visited 3 Branch Regions 2 Pre-discovered Areas . | . . . . Known Exits Taken 1 | . 1 . . Unknown Exits Taken 2 | 1 . 1 . Scrap Searched . | . . . . Spaces Dug . | . . . . Terrain Destroyed . | . . . . Melee . | . . . . Projectile . | . . . . AOE . | . . . . Terrain Rammed . | . . . . Walls Destroyed . | . . . . Machines Disabled . | . . . . Actions | -11 -10 -10 -10 --------- Run | Yrd Mat Min Sub Total 643 | 103 170 95 275 Wait 37 | 7 . 3 27 Move 503 | 64 159 75 205 Hop . | . . . . Pick Up 19 | 8 8 . 3 Fast Attach 9 | 6 . . 3 Attach 4 | . 1 . 3 Detach . | . . . . Swap 10 | 1 1 5 3 Drop 6 | 1 1 . 4 Fire 35 | 16 . 12 7 Melee 20 | . . . 20 Ram . | . . . . Kick . | . . . . Crush . | . . . . Escape Stasis . | . . . . Rewire . | . . . . Trap . | . . . . Miscellaneous . | . . . . Route ------- -11/Scrapyard -10/Materials (discovered 2 exits: *Min x2) -10/Mines (discovered 2 exits: [*Mat] / [*Sub]) -10/Subcaves (discovered 2 exits: *Mat x2) History --------- Turn | Location | Event 40 | -11/Scrapyard | Discovered new exit (range 15) 116 | -11/Scrapyard | Entered Materials 123 | -10/Materials | Identified exit to Mines 277 | -10/Materials | Entered Mines 303 | -10/Mines | Build established: Mutant 380 | -10/Mines | Discovered new exit (range 13) 390 | -10/Mines | Discovered new exit (range 14) 401 | -10/Mines | Entered Subcaves 402 | -10/Subcaves | Approached by a straggling Scientist 422 | -10/Subcaves | Discovered new exit (range 8) 485 | -10/Subcaves | Learned Materials terminal intel 506 | -10/Subcaves | Lost 4 parts (1p1u2w) 508 | -10/Subcaves | Discovered new exit (range 16) 588 | -10/Subcaves | Core integrity fell below 50% 644 | -10/Subcaves | Shifting Twisted Machinery released Mak. Spear 661 | -10/Subcaves | Identified exit to Materials 709 | -10/Subcaves | Core integrity fell below 20% 712 | -10/Subcaves | Destroyed by CM-Y6X(R) with Subdweller Beam Cannon Last Messages --------------- 00595_ Subatomizers dissect the Seismic Detector. 00596_ Acquired 30 matter. 00598_ Sub. Power Source shoots sparks and powers down. 00601_ Acquired Seismic Detector. 7Y-AX0(c): "I think it's somewhere northeast of here" 00606_ Subatomizers dissect the Corrupted Sub. Beam Cannon. 00608_ Acquired Sub. Optics. 00609_ Acquired 20 matter. 00611_ Dropped Broken Sub. Power Source. Mak. Spear falls loose from the Twisted Machinery. 00652_ Dropped Mining Claw. 00653_ Acquired Mak. Spear. 7Y-AX0(c): "I think it's somewhere northwest of here" 00661_ EXIT=IDENTIFIED: MATERIALS 00699_ G3-DJP(R) suffers critical hit (Impale). 00701_ Wheel destroyed. 00705_ Hammer follow-up attack on G3-DJP(R). 7Y-AX0(c): "I think it's somewhere northwest of here" 00708_ Sub. Monowheel destroyed. 00709_ G3-DJP(R) suffers critical hit (Impale). Map ----- +----------------------------------------------------+ | ?????????????????????????????????????????????????? | | ?????????????????????????????????????????????????? | | ?????????????????????????????????????????????????? | | ?????????????????????????????????????????????????? | | ?????????????????????????????????????????????????? | | ?????????????????????????????????????????????????? | | ?????????????????????????????????????????????????? | | ?????????????????????????????????????????????????? | | ?????????????????????????????????????????????????? | | ?????????????????????????????????????????????????? | | ?????????????????????????????????????????????????? | | ?????????????????????????????????????????????????? | | ???????????????????##????????????????????????????? | | ???????????????????# ????????????????????????????? | | ??????????????????## ???????????????????????????? | | ??????????????????# ???????????????????????????? | | ??????????????????# ??????????????????????????? | | ??????????????????? ??????????????????????????? | | ???????????????????? ??????????????????????????? | | ????????????????????? ?????????????????????????? | | ?????????????????????" ?????????????????????????? | | ?????????????????????? ###??????????????????????? | | ??????????????????????? R ##?????????????????????? | | ???????????????????????#% #?????????????????????? | | ???????????????????????#; R#?????????????????????? | | ?????????????????####??#;@#??????????????????????? | | ?????????????????# #### ##?????????????????????? | | ??###????####???## # ## #?????????????????????? | | ### #????#""###?# " ""#?????????????????????? | | ###??#" ### "##"##?????????????????????? | | # #### "" ## "##"" ?????????????????????? | | "" " """"" "????????????????????? | | < """""" """""""#???????????????????? | | ### " "" #"" """" ##???????????????????? | | # ##?### """ "" "##"""???????????????????????? | | # ??# ##" # #""##?"""???????????????????????? | | # #######/ ###???""???????????????????????? | | # #????# #??????????????????????????????? | | #" ## #????# ##??????????????????????????????? | | ####? ???## #???????????????????????????????? | | ????? ???# #???????????????????????????????? | | ?????# ###???# ???????????????????????????????? | | ??????" ##?????# ???????????????????????????????? | | ??????""#??????# ???????????????????????????????? | | ????????????????# ???????????????????????????????? | | ????????????????? ???????????????????????????????? | | ????????????????? ???????????????????????????????? | | ????????????????? ???????????????????????????????? | | ?????????????????#???????????????????????????????? | | ?????????????????????????????????????????????????? | +----------------------------------------------------+ Best States ------------- Heat Dissipation 25 Energy Generation 15 Energy Capacity 200 Matter Stores 300 Matter Capacity 300 Sight Range 16 Terrain Scan Range 16 Terrain Scan Density 10 Evasion (%) 44 Recoil Reduction 2 Item Schematics ----------------- None Robot Schematics ------------------ None Fabricated ------------ Nothing Repaired ---------- Nothing Studied --------- None Alien Tech Used ----------------- None Achievements -------------- None Challenges ------------ None Game ------ Seed ContainmentFissionMatterbank Manual? 0 Play Time 00:16:54 Cumulative 250.0 hours Start 2025.12.24 @ 23:36:35 End 2025.12.24 @ 23:51:47 Sessions 1 Manual Loads 0 Difficulty Rogue Special Mode None Game No. 82 Rogue 82 Adventurer 0 Explorer 0 Win Type - Total 2 Types 2/0/0/0/0/0/0/0/0/0 Lore% 53 Gallery% 60 Achievement% 40 Wizard Run 0 Options --------- Layout 0 ASCII 0 Keyboard 0 Movement Numpad Keybinds 1 Fullscreen 2 Font 18/X11 Map View 76x50 Zoom Use 0% Tactical HUD 1 Map Filters NONE Filters NONE Steam 1 RUN: 888b7dd2-7285-4b24-bcef-84eb2474c579